{"text_format":"3","workbook":"xlsx","n_sheets":1,"sheets":["CHS"],"read":"whole","date_system":"1900"}

{"sheet":"CHS","index":0,"n_rows":41,"n_cols":31,"rows_kept":41,"merged":[[0,0,0,1],[1,0,1,1],[2,0,2,1],[3,0,3,1],[4,17,4,18],[4,19,4,20],[4,21,4,22],[4,23,4,24],[4,25,4,26],[4,27,4,28],[4,29,4,30],[5,17,5,18],[5,19,5,20],[5,21,5,22],[5,23,5,24],[5,25,5,26],[5,27,5,28],[5,29,5,30]]}
["PCHS Football Supplies 2023-24"]
["RFP # 30344"]
["AD's: Please return to Kristina Lafferty no later than April 21, 2023"]
["Vendors: Proposal Due No Later Than 1:00 pm May 10, 2023"]
[{"$nulls":16},"Vendor Name"]
[{"$nulls":16},"Iran Form",false,null,false,null,false,null,false,null,false,null,false,null,false]
["Qty","Item Needed CHS Football","Links/Examples","Description","Color (if applicable)","One Size","small ","medium","large ","x large","xx large","Total\n Quanity","Qty\n Difference","Unit Cost","Total Cost","Price Per \nUnit","Total Cost","$ Per Unit","Total Cost","$ Per Unit","Total Cost","$ Per Unit","Total Cost","$ Per Unit","Total Cost","$ Per Unit","Total Cost","$ Per Unit","Total Cost","$ Per Unit","Total Cost"]
[40,"Knee Pads Sets (Pair)","Adams Adult TL-850 Football Knee Pads ",null,null,40,{"$nulls":5},{"$f":"SUM(F8:K8)","v":40},{"$f":"L8-A8","v":0},null,null,{"$f":"Q8/L8","v":0},null,null,{"$f":"R8*L8","v":0},null,{"$f":"T8*L8","v":0},null,{"$f":"V8*L8","v":0},null,{"$f":"X8*L8","v":0},null,{"$f":"Z8*L8","v":0},null,{"$f":"AB8*L8","v":0},null,{"$f":"AD8*L8","v":0}]
[20,"Girdles","Champro Bull Rush 5-Piece Girdle ",null,"Yellow",0,1,5,10,3,1,20,0,null,null,0,null,null,0,null,0,null,0,null,0,null,0,null,0,null,0]
[40,"Belts","Adams USA Web Football Belt",null,"Navy",40,{"$nulls":5},40,0,null,null,0,null,null,0,null,0,null,0,null,0,null,0,null,0,null,0]
[18,"Fox 40 Whistle rubber tip","Whistle",null,"Navy or Yellow",18,{"$nulls":5},18,0,null,null,0,null,null,0,null,0,null,0,null,0,null,0,null,0,null,0]
[12,"Riddell Speed Flex Helmets","Speedflex Helmet",null,"Green Bay Gold",null,1,4,6,1,null,12,0,null,null,0,null,null,0,null,0,null,0,null,0,null,0,null,0,null,0]
[24,"Wilson Footballs","Wilson GST Leather Game Football","Stitch stripe",null,24,{"$nulls":5},24,0,null,null,0,null,null,0,null,0,null,0,null,0,null,0,null,0,null,0]
[2,"Wilson Football Ball Bag","Wilson Football Duffle Bag ",null,null,2,{"$nulls":5},2,0,null,null,0,null,null,0,null,0,null,0,null,0,null,0,null,0,null,0]
[100,"Mouthpieces","Boil-and-Bite Mouthguards (50PK)",null,"Navy or Yellow",100,{"$nulls":5},100,0,null,null,0,null,null,0,null,0,null,0,null,0,null,0,null,0,null,0]
[12,"Velcro Scrimmage Vests ","Scrimmage Vests",null,"Red",12,{"$nulls":5},12,0,null,null,0,null,null,0,null,0,null,0,null,0,null,0,null,0,null,0]
[24,"Shoulder Pads"," Football Shoulder Pad ",{"$nulls":3},3,7,10,3,1,24,0,null,null,0,null,null,0,null,0,null,0,null,0,null,0,null,0,null,0]
[5,"Stand Up Dummy","Blocking Dummies or Blocking Pad",null,"Navy or Black",5,{"$nulls":5},5,0,null,null,0,null,null,0,null,0,null,0,null,0,null,0,null,0,null,0]
[1,"Rogers Shed Ball","shed ball",null,null,1,{"$nulls":5},1,0,null,null,0,null,null,0,null,0,null,0,null,0,null,0,null,0,null,0]
[7,"Rae Crowther 7 man replacement T pads","Replacement Sled Pads",null,"Navy",7,{"$nulls":5},7,0,null,null,0,null,null,0,null,0,null,0,null,0,null,0,null,0,null,0]
[8,"Hand Shield","Pro Down Hand Shield",null,"Navy or Black",8,{"$nulls":5},8,0]
[100,"Helmet Stripes ","Helmet Multi Stripes",null,null,100,{"$nulls":5},100,0]
[50,"Helmet Decals","Bucking Mustang (Will Provide Template)",null,null,50,{"$nulls":5},50,0]
[4,"set of 1 inch circle numbered stickers 1-99","Punch-Out Number Sets",null,null,4,{"$nulls":5},4,0]
[100,"US Flag stickers","Helmet American Flag Stickers",null,null,100,{"$nulls":5},100,0,null,null,{"$f":"Q25/L25","v":0},null,null,{"$f":"R25*L25","v":0},null,{"$f":"T25*L25","v":0},null,{"$f":"V25*L25","v":0},null,{"$f":"X25*L25","v":0},null,{"$f":"Z25*L25","v":0},null,{"$f":"AB25*L25","v":0},null,{"$f":"AD25*L25","v":0}]
[{"$nulls":11},0,0]
[{"$nulls":11},0,0]
[{"$nulls":11},0,0]
[{"$nulls":11},0,0]
[{"$nulls":11},0,0]
[{"$nulls":11},0,0]
[{"$nulls":11},0,0]
[{"$nulls":11},0,0]
[{"$nulls":11},0,0,null,null,{"$f":"Q34/L34","v":{"$error":"#DIV/0!"}},null,null,{"$f":"R34*L34","v":0},null,{"$f":"T34*L34","v":0},null,{"$f":"V34*L34","v":0},null,{"$f":"X34*L34","v":0},null,{"$f":"Z34*L34","v":0},null,{"$f":"AB34*L34","v":0},null,{"$f":"AD34*L34","v":0}]
[{"$nulls":11},0,0,null,null,{"$error":"#DIV/0!"},null,null,0,null,0,null,0,null,0,null,0,null,0,null,0]
[{"$nulls":11},0,0,null,null,{"$error":"#DIV/0!"},null,null,0,null,0,null,0,null,0,null,0,null,0,null,0]
[{"$nulls":11},0,0,null,null,{"$error":"#DIV/0!"},null,null,0,null,0,null,0,null,0,null,0,null,0,null,0]
[{"$nulls":11},0,0,null,null,{"$error":"#DIV/0!"},null,null,0,null,0,null,0,null,0,null,0,null,0,null,0]
[{"$f":"SUM(A8:A38)","v":567},{"$nulls":10},{"$f":"SUM(L8:L38)","v":567},0]
[{"$nulls":11},"Total Cost",{"$nulls":3},"Shipping"]
[{"$nulls":15},"Grand Total",{"$f":"SUM(Q8:Q38)+Q40","v":{"v":0,"d":"$0.00"}},null,{"$f":"SUM(S8:S38)+S40","v":{"v":0,"d":"$0.00"}},null,{"$f":"SUM(U8:U38)+U40","v":{"v":0,"d":"$0.00"}},null,{"$f":"SUM(W8:W38)+W40","v":{"v":0,"d":"$0.00"}},null,{"$f":"SUM(Y8:Y38)+Y40","v":{"v":0,"d":"$0.00"}},null,{"$f":"SUM(AA8:AA38)+AA40","v":{"v":0,"d":"$0.00"}},null,{"$f":"SUM(AC8:AC38)+AC40","v":{"v":0,"d":"$0.00"}},null,{"$f":"SUM(AE8:AE38)+AE40","v":{"v":0,"d":"$0.00"}}]